bitfinex/quotes_SOLUSD_20220228
["timestamp","ask_amount","ask_price","bid_price","bid_amount"]
[1646067469231,21.4980537,95.482,95.374,2.57258611]
[1646067469430,2.74678921,95.487,95.376,167.19]
[1646067469431,45.32848232,95.486,95.376,167.19]
[1646067469630,45.32848232,95.486,95.391,167.19]
[1646067469830,45.32848232,95.486,95.395,62.69]
[1646067470231,45.32848232,95.486,95.397,62.69]
[1646067470429,45.32848232,95.486,95.405,62.69]
[1646067470631,23.8316,95.499,95.419,62.69]
[1646067470832,23.8316,95.499,95.411,62.69]
[1646067471032,23.8316,95.499,95.41,15.13]
[1646067471033,2.74678921,95.498,95.41,15.13]
[1646067471443,21.41138703,95.513,95.411,2.53150745]
[1646067471633,47.94452662,95.497,95.411,25.50230745]
[1646067471834,47.94452662,95.497,95.412,2.52110331]
[1646067472032,47.94452662,95.497,95.412,169.71110331]
[1646067472632,47.94452662,95.497,95.412,167.19]
[1646067474234,2.74678921,95.512,95.413,2.51089771]
[1646067474434,2.74678921,95.512,95.414,4.19]
[1646067474634,2.66604321,95.53,95.414,4.19]
[1646067474935,2.66604321,95.53,95.416,167.19]
[1646067475134,2.66604321,95.53,95.442,104.5]
[1646067475334,2.66604321,95.53,95.441,62.69]
[1646067475335,51.22177432,95.522,95.444,104.5]
[1646067476135,2.74678921,95.521,95.444,104.5]
[1646067476538,51.22177432,95.522,95.444,104.5]
[1646067479038,51.22177432,95.522,95.443,31.93243814]
[1646067479235,51.22177432,95.522,95.442,23.1429]
[1646067479236,1.59249454,95.521,95.442,23.1429]
[1646067479437,7.71249454,95.521,95.442,23.1429]
[1646067479637,24.15817624,95.52,95.442,23.1429]
[1646067480035,24.15817624,95.519,95.442,23.1429]
[1646067480235,1.54544936,95.518,95.443,43.47320324]
[1646067480435,24.15817624,95.518,95.443,43.47320324]
[1646067480638,23.13301427,95.517,95.443,43.47320324]
[1646067480837,24.15817624,95.517,95.443,43.47320324]
[1646067481038,49.63958703,95.516,95.443,43.47320324]
[1646067481237,1.6635993,95.515,95.443,43.47320324]
[1646067481440,4.41038851,95.515,95.443,43.47320324]
[1646067481639,2.74678921,95.514,95.443,43.47320324]
[1646067482039,1.6635993,95.515,95.443,43.47320324]
[1646067483441,24.0392,95.516,95.443,43.47320324]
[1646067485141,1.52883823,95.515,95.443,43.47320324]
[1646067485341,8.38388144,95.515,95.443,43.47320324]
[1646067485541,2.74678921,95.514,95.443,43.47320324]
[1646067486140,5.71783823,95.515,95.443,43.47320324]
[1646067486344,1.52883823,95.515,95.443,43.47320324]
[1646067488345,2.74678921,95.514,95.443,43.47320324]
[1646067488946,2.74678921,95.514,95.442,23.1429]
[1646067489147,2.74678921,95.514,95.41,15.13]
[1646067489346,1.8585752,95.512,95.39,15.13]
[1646067489545,4.19,95.511,95.39,15.13]
[1646067489745,2.74678921,95.511,95.39,15.13]
[1646067489949,4.19,95.51,95.416,51.97865552]
[1646067490168,2.74678921,95.51,95.416,51.97865552]
[1646067490369,6.93678921,95.509,95.416,51.97865552]
[1646067490769,2.74678921,95.508,95.416,51.97865552]
[1646067490967,4.19,95.507,95.416,51.97865552]
[1646067491167,1.8585752,95.512,95.421,167.19]
[1646067491568,24.0392,95.516,95.421,167.19]
[1646067493268,24.0392,95.516,95.422,2.74678921]
[1646067493467,24.0392,95.516,95.424,2.57933294]
[1646067493870,15.605,95.534,95.425,2.74678921]
[1646067494867,26.07875448,95.523,95.425,2.74678921]
[1646067495068,24.5035,95.521,95.425,2.74678921]
[1646067495271,1.41242795,95.52,95.423,167.19]
[1646067495668,4.189,95.531,95.425,167.19]
[1646067495868,4.189,95.532,95.427,167.19]
[1646067496069,1.7639413,95.545,95.441,167.19]
[1646067496269,1.7639413,95.545,95.443,167.19]
[1646067496468,56.02698916,95.544,95.443,167.19]
[1646067496668,1.54775407,95.543,95.443,167.19]
[1646067499170,1.54775407,95.543,95.444,5.04465333]
[1646067499370,24.5035,95.546,95.444,5.04465333]
[1646067499371,24.5035,95.546,95.446,167.19]
[1646067499571,24.5035,95.546,95.445,31.99839797]
[1646067499572,24.5035,95.546,95.461,167.19]
[1646067499772,24.5035,95.546,95.471,167.19]
[1646067500376,24.8677,95.551,95.471,167.19]
[1646067501976,24.7076,95.559,95.471,167.19]
[1646067502978,24.7076,95.559,95.47,15.13]
[1646067503174,23.06235503,95.558,95.47,15.13]
[1646067503376,5.97936959,95.557,95.462,22.7954]
[1646067503577,30.13754583,95.557,95.462,22.7954]
[1646067503777,25.48344418,95.556,95.462,22.7954]
[1646067503978,5.78871547,95.555,95.462,22.7954]
[1646067504180,24.15817624,95.555,95.462,22.7954]
[1646067504380,22.79883126,95.554,95.462,22.7954]
[1646067504680,5.70334454,95.553,95.462,22.7954]
[1646067504879,1.72845703,95.552,95.462,22.7954]
[1646067505079,25.88663327,95.552,95.462,22.7954]
[1646067505282,1.72888033,95.551,95.462,22.7954]
[1646067505482,4.47566954,95.551,95.462,22.7954]
[1646067505681,1.72888033,95.551,95.462,22.7954]
[1646067505883,5.69876569,95.556,95.462,22.7954]
[1646067506484,1.51076569,95.556,95.462,22.7954]
[1646067507783,2.74678921,95.555,95.462,22.7954]
[1646067507985,24.15817624,95.555,95.462,22.7954]
[1646067508183,4.188,95.556,95.463,169.93678921]
[1646067508384,55.00723964,95.56,95.471,167.19]
[1646067508585,55.00723964,95.56,95.472,2.85727148]
[1646067508985,55.00723964,95.56,95.471,169.93678921]
[1646067509184,55.00723964,95.56,95.471,167.19]
[1646067509384,55.00723964,95.56,95.473,167.19]
[1646067509585,4.187,95.577,95.486,104.5]
[1646067509787,6.03092076,95.577,95.498,104.5]
[1646067509985,1.84392076,95.577,95.502,167.19]
[1646067510185,1.84392076,95.577,95.502,62.69]
[1646067510386,23.3489,95.578,95.502,62.69]
[1646067510687,23.3489,95.578,95.504,62.69]
[1646067510884,23.3489,95.578,95.504,167.19]
[1646067511087,23.3489,95.578,95.504,62.69]
[1646067512286,1.7522012,95.577,95.503,39.99827088]
[1646067512686,5.9382012,95.577,95.503,39.99827088]
[1646067513487,1.7522012,95.577,95.503,39.99827088]
[1646067513687,1.7522012,95.577,95.504,104.5]
[1646067514486,1.7522012,95.577,95.503,39.99827088]
[1646067515588,2.66604321,95.576,95.503,39.99827088]
[1646067517088,2.66604321,95.576,95.46,15.13]
[1646067517288,4.187,95.575,95.46,15.13]
[1646067517690,2.74678921,95.574,95.46,15.13]
[1646067517890,15.13,95.57,95.46,15.13]
[1646067518190,4.34318082,95.569,95.461,55.02891749]
[1646067518391,4.187,95.568,95.461,55.02891749]
[1646067518592,28.79060729,95.568,95.461,55.02891749]
[1646067518790,26.95850957,95.568,95.461,55.02891749]
[1646067518990,24.31935489,95.567,95.461,55.02891749]
[1646067519191,5.860121,95.566,95.461,55.02891749]
[1646067519390,26.95850957,95.566,95.461,55.02891749]
[1646067519592,1.5474719,95.565,95.461,55.02891749]
[1646067519790,13.84685013,95.549,95.461,55.02891749]
[1646067519991,1.37326233,95.547,95.461,55.02891749]
[1646067521692,4.188,95.546,95.461,55.02891749]
[1646067522292,1.37326233,95.547,95.461,55.02891749]
[1646067522495,15.6259,95.547,95.461,55.02891749]
[1646067522693,1.72607747,95.546,95.461,55.02891749]
[1646067523295,5.91407747,95.546,95.461,55.02891749]
[1646067523696,5.91407747,95.546,95.44,15.13]
[1646067523897,22.8534,95.545,95.433,104.5]
[1646067524095,5.84186801,95.544,95.433,104.5]
[1646067524294,8.58865722,95.544,95.432,23.4393]
[1646067524496,15.13,95.53,95.421,4.189]
[1646067524695,15.13,95.53,95.413,23.4393]
[1646067524696,28.464,95.529,95.426,59.69496772]
[1646067524895,1.57874034,95.528,95.426,59.69496772]
[1646067525095,4.189,95.527,95.426,59.69496772]
[1646067525296,4.189,95.527,95.427,23.8292]
[1646067525496,6.93578921,95.527,95.427,23.8292]
[1646067525896,2.74678921,95.526,95.427,23.8292]
[1646067526096,4.189,95.525,95.427,23.8292]
[1646067526596,2.74678921,95.524,95.427,23.8292]
[1646067528402,2.74678921,95.524,95.426,59.69496772]
[1646067528801,4.189,95.523,95.426,59.69496772]
[1646067529301,2.74678921,95.522,95.426,59.69496772]
[1646067529501,49.94667266,95.52,95.426,59.69496772]
[1646067529701,6.06366241,95.519,95.426,59.69496772]
[1646067529904,31.00183865,95.519,95.426,59.69496772]
[1646067530104,1.58179893,95.517,95.426,59.69496772]
[1646067530301,4.189,95.516,95.426,59.69496772]
[1646067530502,29.12717624,95.516,95.426,59.69496772]
[1646067530704,1.35702017,95.515,95.426,59.69496772]
[1646067530904,5.88988302,95.514,95.426,59.69496772]
[1646067531105,8.63667223,95.514,95.426,59.69496772]
[1646067531304,2.74678921,95.513,95.426,59.69496772]
[1646067531508,4.189,95.512,95.426,59.69496772]
[1646067531703,2.74678921,95.513,95.426,59.69496772]
[1646067531904,2.74678921,95.511,95.426,59.69496772]
[1646067532505,1.54376383,95.509,95.426,59.69496772]
[1646067532907,2.74678921,95.508,95.426,59.69496772]
[1646067533707,23.0276,95.507,95.426,59.69496772]
[1646067534008,1.55890267,95.506,95.426,59.69496772]
[1646067534207,23.0276,95.507,95.426,59.69496772]
[1646067535509,23.0276,95.507,95.427,23.8513]
[1646067536409,23.0276,95.507,95.43,62.69]
[1646067536612,23.0276,95.507,95.434,167.19]
[1646067540814,23.0276,95.507,95.434,174.94]
[1646067542015,23.0276,95.507,95.434,167.19]
[1646067544818,23.0276,95.507,95.43,15.13]
[1646067545019,23.0276,95.507,95.427,23.8513]
[1646067545020,4.40466318,95.506,95.427,23.8513]
[1646067545417,2.74678921,95.505,95.427,23.8513]
[1646067545616,4.43908655,95.505,95.427,23.8513]
[1646067545818,24.93817624,95.505,95.427,23.8513]
[1646067546019,26.33984232,95.504,95.427,23.8513]
[1646067546221,1.80237539,95.503,95.427,23.8513]
[1646067546439,26.65980563,95.503,95.427,23.8513]
[1646067546620,4.09945688,95.502,95.427,23.8513]
[1646067546823,31.92084391,95.502,95.393,24.9382]
[1646067547021,15.13,95.5,95.393,24.9382]
[1646067547223,1.66418011,95.499,95.393,24.9382]
[1646067547420,12.95633787,95.499,95.393,24.9382]
[1646067547623,1.36880462,95.498,95.393,24.9382]
[1646067547822,1.36422151,95.497,95.406,45.79293043]
[1646067548023,4.11101072,95.497,95.406,45.79293043]
[1646067548223,1.76273752,95.495,95.406,45.79293043]
[1646067548722,2.74678921,95.494,95.406,45.79293043]
[1646067548923,16.81318988,95.493,95.406,45.79293043]
[1646067549123,1.62478186,95.492,95.406,45.79293043]
[1646067549325,4.37157107,95.492,95.406,45.79293043]
[1646067549822,2.74678921,95.491,95.406,45.79293043]
[1646067550026,2.74678921,95.491,95.407,22.5964]
[1646067553432,4.19,95.49,95.407,22.5964]
[1646067553828,2.74678921,95.489,95.407,22.5964]
[1646067554048,4.19,95.488,95.407,22.5964]
[1646067554249,2.74678921,95.489,95.407,22.5964]
[1646067554448,2.74678921,95.487,95.407,22.5964]
[1646067558952,2.74678921,95.487,95.374,24.199]
[1646067558953,14.57807992,95.486,95.374,24.199]
[1646067559153,34.99533095,95.486,95.36,15.13]
[1646067559354,17.91918917,95.485,95.344,104.5]
[1646067559553,5.9466033,95.484,95.344,104.5]
[1646067559754,15.13,95.47,95.341,62.69]
[1646067559953,5.88424298,95.469,95.378,46.66958088]
[1646067560155,29.55964298,95.469,95.378,46.66958088]
[1646067560454,36.94667696,95.468,95.338,47.6762]
[1646067560654,4.192,95.467,95.338,47.6762]
[1646067560854,43.05337416,95.467,95.338,47.6762]
[1646067561054,35.94740879,95.466,95.338,47.6762]
[1646067561258,5.79216199,95.465,95.338,47.6762]
[1646067561457,45.55975663,95.464,95.339,51.89962389]
[1646067561656,15.13,95.45,95.339,51.89962389]
[1646067561956,1.8096894,95.448,95.339,51.89962389]
[1646067562157,1.8096894,95.448,95.34,77.82]
[1646067562556,2.74678921,95.447,95.351,104.5]
[1646067562756,2.74678921,95.447,95.353,104.5]
[1646067563255,49.4748,95.449,95.353,104.5]
[1646067565162,49.4748,95.449,95.352,24.099]
[1646067565362,1.6251146,95.448,95.352,24.099]
[1646067565768,2.74678921,95.447,95.352,24.099]
[1646067567568,4.192,95.446,95.352,24.099]
[1646067567867,2.74678921,95.445,95.352,24.099]
[1646067569472,1.6251146,95.448,95.353,104.5]
[1646067569668,49.4748,95.449,95.352,24.099]
[1646067569669,49.4748,95.449,95.354,167.19]
[1646067570071,50.93293125,95.449,95.354,167.19]
[1646067570867,2.74678921,95.469,95.356,167.19]
[1646067570868,4.36240011,95.469,95.356,167.19]
[1646067571068,27.97440011,95.469,95.361,167.19]
[1646067571270,27.97440011,95.469,95.362,3.12318886]
[1646067571469,2.74678921,95.463,95.362,3.12318886]
[1646067571670,2.74678921,95.463,95.364,167.19]
[1646067572069,25.42604024,95.463,95.364,167.19]
[1646067572470,22.67925103,95.463,95.364,167.19]
[1646067573772,22.67925103,95.463,95.364,62.69]
[1646067574572,22.67925103,95.463,95.364,167.19]
[1646067574972,22.67925103,95.463,95.363,24.3053]
[1646067575173,1.80250774,95.462,95.363,24.3053]
[1646067575376,15.13,95.46,95.363,24.3053]
[1646067575574,1.60820478,95.459,95.363,24.3053]
[1646067575774,28.47945581,95.459,95.363,24.3053]
[1646067575977,1.4235842,95.457,95.36,15.13]
[1646067576374,22.67925103,95.456,95.36,15.13]
[1646067576574,1.69825634,95.455,95.36,15.13]
[1646067577775,1.69825634,95.455,95.361,23.5961]
[1646067578177,1.69825634,95.455,95.361,86.2861]
[1646067579476,1.69825634,95.455,95.361,23.5961]
[1646067580282,1.69825634,95.455,95.36,15.13]
[1646067580483,23.9216407,95.455,95.34,15.13]
[1646067580680,15.13,95.45,95.34,24.1806]
[1646067580879,5.95401818,95.449,95.34,24.1806]
[1646067581080,5.95401818,95.449,95.34,39.3106]
[1646067582380,5.95401818,95.449,95.341,62.69]
[1646067582583,2.74678921,95.452,95.351,62.69]
[1646067582782,2.74678921,95.452,95.36,15.13]
[1646067585388,2.74678921,95.452,95.352,23.933]
[1646067585785,22.22338436,95.451,95.352,23.933]
[1646067585987,1.39483516,95.45,95.352,23.933]
[1646067586185,4.14162437,95.45,95.352,23.933]
[1646067586387,29.16217357,95.449,95.352,23.933]
[1646067586586,1.49969178,95.448,95.352,23.933]
[1646067586786,4.192,95.447,95.352,23.933]
[1646067586990,1.7512378,95.445,95.352,23.933]
[1646067587388,2.74678921,95.444,95.352,23.933]
[1646067587589,24.97017357,95.444,95.352,23.933]
[1646067587803,1.53403155,95.443,95.352,23.933]
[1646067588003,4.28082076,95.443,95.352,23.933]
[1646067588206,2.74678921,95.442,95.352,23.933]
[1646067589105,24.97017357,95.442,95.352,23.933]
[1646067589404,1.67775409,95.441,95.352,23.933]
[1646067589605,4.4245433,95.441,95.352,23.933]
[1646067589805,24.97017357,95.44,95.352,23.933]
[1646067590204,2.66604321,95.439,95.352,23.933]
[1646067593105,1.42963684,95.444,95.352,23.933]
[1646067593309,1.42963684,95.444,95.353,104.5]
[1646067593507,24.5656,95.446,95.353,104.5]
[1646067594507,24.5656,95.446,95.352,23.933]
[1646067594508,46.45388436,95.469,95.354,169.8985824]
[1646067594708,1.66808253,95.463,95.355,2.77419645]
[1646067594908,1.66808253,95.463,95.361,62.69]
[1646067595109,1.66808253,95.463,95.37,104.5]
[1646067595308,1.66808253,95.463,95.362,2.2965353]
[1646067595309,24.6361,95.468,95.372,32.0774296]
[1646067595509,24.6361,95.468,95.373,104.5]
[1646067596111,24.6361,95.468,95.374,170.30778141]
[1646067596812,24.6361,95.468,95.374,65.80778141]
[1646067597110,55.82609087,95.467,95.374,3.11778141]
[1646067597512,55.82609087,95.467,95.381,62.69]
[1646067597810,24.6361,95.468,95.381,62.69]
[1646067598211,1.50782252,95.491,95.396,104.5]
[1646067598412,5.0,95.488,95.405,62.69]
[1646067598614,5.0,95.488,95.407,62.69]
[1646067598811,49.97562189,95.487,95.409,62.69]
[1646067599015,5.0,95.488,95.409,62.69]
[1646067599217,5.0,95.488,95.411,62.69]
[1646067600819,58.47561849,95.492,95.411,62.69]
[1646067601421,6.0,95.492,95.411,62.69]
[1646067602219,6.0,95.492,95.412,104.5]
[1646067602419,6.0,95.492,95.411,62.69]
[1646067602620,60.7735303,95.491,95.411,62.69]
[1646067603319,60.7735303,95.491,95.41,15.13]
[1646067603522,22.22338436,95.49,95.41,15.13]
[1646067604219,24.8173,95.489,95.41,15.13]
[1646067604720,1.76074411,95.488,95.408,49.89631329]
[1646067605121,2.74678921,95.487,95.408,49.89631329]
[1646067605321,4.40001302,95.487,95.408,49.89631329]
[1646067605720,1.8407245,95.485,95.408,49.89631329]
[1646067606122,2.74678921,95.484,95.408,49.89631329]
[1646067606525,2.74678921,95.484,95.406,23.7539]
[1646067606724,2.74678921,95.484,95.321,15.3835]
[1646067606725,15.13,95.48,95.35,15.13]
[1646067606923,1.62062938,95.479,95.326,46.38639887]
[1646067607124,4.191,95.478,95.34,15.13]
[1646067607326,4.191,95.478,95.33,15.13]
[1646067607522,2.74678921,95.477,95.376,50.40706773]
[1646067607722,4.191,95.476,95.376,50.40706773]
[1646067607923,5.91007302,95.476,95.376,50.40706773]
[1646067608223,2.74678921,95.475,95.376,50.40706773]
[1646067608423,15.13,95.47,95.376,50.40706773]
[1646067608625,1.49450751,95.469,95.376,50.40706773]
[1646067608824,4.24129672,95.469,95.376,50.40706773]
[1646067609035,2.74678921,95.468,95.376,50.40706773]
[1646067609230,1.36254609,95.466,95.376,50.40706773]
[1646067609630,2.74678921,95.465,95.376,50.40706773]
[1646067611031,2.74678921,95.465,95.377,22.6129]
[1646067614436,24.116,95.467,95.378,62.69]
[1646067614636,2.66604321,95.487,95.381,62.69]
[1646067614840,22.9549,95.488,95.38,15.13]
[1646067614841,22.9549,95.488,95.384,3.07504048]
[1646067615438,22.9549,95.488,95.387,62.69]
[1646067615638,22.9549,95.488,95.401,62.69]
[1646067615835,22.9549,95.488,95.402,23.2409]
[1646067616439,4.24027925,95.483,95.402,23.2409]
[1646067616940,2.74678921,95.482,95.402,23.2409]
[1646067617338,22.9549,95.488,95.402,23.2409]
[1646067620341,22.9549,95.488,95.403,62.69]
[1646067620540,6.0,95.492,95.403,62.69]
[1646067620740,6.0,95.492,95.404,2.7749156]
[1646067621342,6.0,95.492,95.422,104.5]
[1646067621546,6.0,95.492,95.422,128.2923]
[1646067622150,23.8848,95.506,95.422,128.2923]
[1646067622549,52.46543354,95.505,95.422,23.7923]
[1646067623449,4.11733282,95.504,95.422,23.7923]
[1646067623848,2.74678921,95.503,95.422,23.7923]
[1646067625853,52.46543354,95.505,95.423,104.5]
[1646067626653,52.46543354,95.505,95.422,23.7923]
[1646067626856,4.27130379,95.504,95.422,23.7923]
[1646067627257,2.74678921,95.503,95.422,23.7923]
[1646067629469,15.13,95.5,95.422,23.7923]
[1646067629673,1.77603585,95.499,95.422,23.7923]
[1646067629874,4.19,95.498,95.422,23.7923]
[1646067630072,2.74678921,95.498,95.422,23.7923]
[1646067631073,1.77603585,95.499,95.422,23.7923]
[1646067631274,1.85555189,95.504,95.4,15.13]
[1646067631475,2.74678921,95.498,95.392,23.8363]
[1646067632573,2.74678921,95.498,95.407,24.7814]
[1646067632774,1.85555189,95.504,95.407,24.7814]
[1646067632974,1.85555189,95.504,95.408,62.69]
[1646067633176,1.85555189,95.504,95.408,65.43678921]
[1646067633375,23.8848,95.506,95.411,62.69]
[1646067633574,23.8848,95.506,95.422,104.5]
[1646067633776,23.8848,95.506,95.424,104.5]
[1646067634176,23.8848,95.506,95.432,104.5]
[1646067634377,23.8848,95.506,95.431,62.69]
[1646067635177,23.8848,95.506,95.424,62.69]
[1646067635578,23.8848,95.506,95.424,167.19]
[1646067636477,23.8848,95.506,95.424,62.69]
[1646067637581,23.8848,95.506,95.423,24.1787]
[1646067637582,2.74678921,95.505,95.423,24.1787]
[1646067637980,23.8848,95.506,95.424,104.5]
[1646067638581,23.8848,95.506,95.425,62.69]
[1646067638882,23.8848,95.506,95.423,24.1787]
[1646067639481,1.4889668,95.505,95.423,24.1787]
[1646067643284,2.74678921,95.504,95.423,24.1787]
[1646067643685,1.4889668,95.505,95.423,24.1787]
[1646067645289,23.8848,95.506,95.424,62.69]
[1646067645485,23.8848,95.506,95.424,73.31678921]
[1646067645685,23.8848,95.506,95.424,177.81678921]
[1646067645886,23.8848,95.506,95.425,2.74678921]
[1646067647485,23.8848,95.506,95.427,167.19]
[1646067647687,23.8848,95.506,95.431,62.69]
[1646067648085,23.8848,95.506,95.433,167.19]
[1646067648287,23.8848,95.506,95.435,62.69]
[1646067648787,23.8848,95.506,95.434,50.40706773]
[1646067648987,1.35072785,95.505,95.434,50.40706773]
[1646067651287,4.09751706,95.505,95.434,50.40706773]
[1646067652290,12.86751706,95.505,95.406,23.9565]
[1646067652590,1.80379366,95.499,95.406,23.9565]
[1646067652790,1.80379366,95.499,95.391,24.6387]
[1646067652989,2.74678921,95.498,95.374,2.74678921]
[1646067653193,6.93678921,95.498,95.355,55.49925489]
[1646067653392,19.10666439,95.498,95.356,62.69]
[1646067653592,15.27938478,95.497,95.356,76.96343643]
[1646067653792,4.191,95.496,95.356,14.27343643]
[1646067654092,104.5,95.489,95.355,55.49925489]
[1646067654293,189.18,95.49,95.355,55.49925489]
[1646067654294,15.13,95.48,95.355,55.49925489]
[1646067654491,55.24765798,95.479,95.355,55.49925489]
[1646067654891,1.50246673,95.478,95.355,55.49925489]
[1646067655094,4.192,95.477,95.355,55.49925489]
[1646067655296,5.88829816,95.477,95.355,55.49925489]
[1646067655491,17.8086462,95.477,95.355,55.49925489]
[1646067655693,104.5,95.475,95.355,55.49925489]
[1646067655895,15.13,95.46,95.355,55.49925489]
[1646067656191,48.61792246,95.449,95.355,55.49925489]
[1646067656393,5.89803516,95.448,95.355,55.49925489]
[1646067656591,4.45282437,95.448,95.355,55.49925489]
[1646067656991,2.74678921,95.447,95.355,55.49925489]
[1646067657594,1.48770764,95.445,95.355,55.49925489]
[1646067657793,4.192,95.444,95.355,55.49925489]
[1646067657994,15.13,95.44,95.355,55.49925489]
[1646067658194,1.37795128,95.439,95.355,55.49925489]
[1646067658594,4.12474049,95.439,95.355,55.49925489]
[1646067658796,2.74678921,95.438,95.355,55.49925489]
[1646067661296,4.192,95.437,95.355,55.49925489]
[1646067661697,2.74678921,95.436,95.355,55.49925489]
[1646067661897,4.192,95.435,95.355,55.49925489]
[1646067662396,4.192,95.435,95.324,24.8438]
[1646067662397,2.74678921,95.434,95.324,24.8438]
[1646067662597,15.13,95.42,95.323,23.8812]
[1646067662796,15.13,95.42,95.296,16.0491]
[1646067662797,24.44645768,95.419,95.297,22.7617]
[1646067663096,13.27361687,95.418,95.297,22.7617]
[1646067663299,15.40222346,95.417,95.298,56.98182891]
[1646067663598,6.06346981,95.416,95.298,56.98182891]
[1646067663797,19.53336317,95.416,95.298,56.98182891]
[1646067663996,7.67879322,95.415,95.298,56.98182891]
[1646067664195,4.194,95.414,95.298,56.98182891]
[1646067664397,15.13,95.4,95.298,56.98182891]
[1646067664596,1.68414002,95.398,95.298,56.98182891]
[1646067664997,47.73470599,95.397,95.298,56.98182891]
[1646067665297,17.71095065,95.396,95.298,56.98182891]
[1646067665496,4.195,95.395,95.298,56.98182891]
[1646067665696,46.97072305,95.379,95.298,56.98182891]
[1646067665899,56.69572305,95.379,95.298,56.98182891]
[1646067666100,1.37714406,95.378,95.298,56.98182891]
[1646067666298,4.195,95.377,95.298,56.98182891]
[1646067666500,2.74678921,95.377,95.298,56.98182891]
[1646067666898,1.42711168,95.378,95.298,56.98182891]
[1646067668500,46.97072305,95.379,95.298,56.98182891]
[1646067669501,25.99908921,95.378,95.298,56.98182891]
[1646067669703,1.4020905,95.377,95.298,56.98182891]
[1646067669901,4.195,95.376,95.298,56.98182891]
[1646067670101,26.42805305,95.376,95.298,56.98182891]
[1646067670307,1.58242367,95.375,95.298,56.98182891]
[1646067670504,4.195,95.374,95.273,23.6783]
[1646067670702,15.13,95.37,95.273,23.6783]
[1646067670904,6.02553682,95.369,95.273,23.6783]
[1646067671104,8.77232603,95.369,95.273,23.6783]
[1646067671307,22.23305305,95.368,95.273,23.6783]
[1646067671507,5.60699575,95.367,95.274,58.10564609]
[1646067671805,8.35378496,95.367,95.274,58.10564609]
[1646067672004,1.54819663,95.365,95.274,58.10564609]
[1646067672303,15.13,95.36,95.274,58.10564609]
[1646067672503,1.39838903,95.359,95.274,58.10564609]
[1646067672903,2.74678921,95.358,95.274,58.10564609]
[1646067675706,4.54148459,95.358,95.274,58.10564609]
[1646067675905,22.23305305,95.357,95.274,58.10564609]
[1646067676105,1.58009724,95.356,95.274,58.10564609]
[1646067676307,4.32688645,95.356,95.274,58.10564609]
[1646067676708,2.74678921,95.355,95.273,23.6783]
[1646067676908,24.97984226,95.355,95.273,23.6783]
[1646067677108,23.2303,95.354,95.273,23.6783]
[1646067677307,15.13,95.35,95.273,23.6783]
[1646067677507,1.80102528,95.349,95.273,23.6783]
[1646067677731,15.40222346,95.348,95.274,52.15986378]
[1646067678117,4.56603836,95.347,95.274,52.15986378]
[1646067678318,2.74678921,95.347,95.274,52.15986378]
[1646067679720,4.55755303,95.347,95.274,52.15986378]
[1646067679919,1.92755303,95.347,95.274,52.15986378]
[1646067680119,2.66604321,95.346,95.274,52.15986378]
[1646067680521,2.74678921,95.346,95.274,52.15986378]
[1646067680719,4.35483624,95.346,95.274,52.15986378]
[1646067680920,22.23305305,95.345,95.274,52.15986378]
[1646067681121,1.67931124,95.344,95.274,52.15986378]
[1646067681526,4.42610045,95.344,95.274,52.15986378]
[1646067681724,1.67931124,95.344,95.274,52.15986378]
[1646067682123,24.97984226,95.343,95.274,52.15986378]
[1646067682323,1.60884023,95.342,95.274,52.15986378]
[1646067682523,1.74662597,95.34,95.274,52.15986378]
[1646067683123,2.74678921,95.339,95.274,52.15986378]
[1646067685342,23.8293,95.341,95.274,52.15986378]
[1646067686343,25.23984226,95.34,95.274,52.15986378]
[1646067686543,4.196,95.339,95.274,52.15986378]
[1646067686744,29.43584226,95.339,95.274,52.15986378]
[1646067686946,22.49305305,95.339,95.274,52.15986378]
[1646067687145,2.74678921,95.338,95.274,52.15986378]
[1646067687744,4.37984123,95.338,95.274,52.15986378]
[1646067688146,1.63305202,95.338,95.274,52.15986378]
[1646067688345,2.74678921,95.337,95.226,62.69]
[1646067688545,2.74678921,95.337,95.229,2.56574086]
[1646067689247,25.23984226,95.337,95.233,104.5]